fUST/lending_fUST_20240927
["ID","MTS","AMOUNT","RATE_DAILY","PERIOD"]
[339253931,1727405442620,-500.0,0.00019452,2]
[339253932,1727405442631,-151.0,0.00019452,2]
[339253933,1727405442642,-500.0,0.00019452,2]
[339253934,1727405442653,-151.0,0.00019452,2]
[339253935,1727405442662,-151.0,0.00019452,2]
[339253936,1727405442672,-508.29261537,0.00019452,2]
[339253937,1727405442681,-500.0,0.00019452,2]
[339253938,1727405442691,-154.1035987,0.00019452,2]
[339253939,1727405442701,-507.25366586,0.00019452,2]
[339253940,1727405442710,-500.0,0.00019452,2]
[339253941,1727405442720,-512.88799537,0.00019452,2]
[339253942,1727405442730,-505.57790031,0.00019452,2]
[339253943,1727405442742,-221.8604,0.00019452,2]
[339253944,1727405442751,-1000.0,0.00019452,2]
[339253945,1727405442761,-510.47063791,0.00019452,2]
[339253946,1727405442771,-221.8604,0.00019452,2]
[339253947,1727405442782,-507.73715243,0.00019452,2]
[339253948,1727405442791,-151.0,0.00019452,2]
[339253949,1727405442802,-151.0,0.00019452,2]
[339253950,1727405442811,-500.0,0.00019452,2]
[339253951,1727405442821,-228.134831,0.00019452,2]
[339253952,1727405442831,-228.134831,0.00019452,2]
[339253953,1727405442842,-500.0,0.00019452,2]
[339253954,1727405442852,-500.0,0.00019452,2]
[339253955,1727405442862,-151.0,0.00019452,2]
[339253956,1727405442871,-151.0,0.00019452,2]
[339253957,1727405442881,-500.0,0.00019452,2]
[339253958,1727405442894,-500.0,0.00019452,2]
[339253959,1727405442904,-172.52427923,0.00019452,2]
[339253960,1727405442914,-198.40069538,0.00019452,2]
[339253961,1727405442925,-510.71150296,0.00019452,2]
[339253962,1727405442935,-500.0,0.00019452,2]
[339253963,1727405442947,-511.40507203,0.00019452,2]
[339253964,1727405442957,-151.0,0.00019452,2]
[339253965,1727405442966,-511.24234283,0.00019452,2]
[339253966,1727405442976,-500.0,0.00019452,2]
[339253967,1727405442987,-509.19445995,0.00019452,2]
[339253968,1727405442996,-508.5614065,0.00019452,2]
[339253969,1727405443006,-596.75,0.00019452,2]
[339253970,1727405443016,-151.0,0.00019452,2]
[339253971,1727405443025,-220.23,0.00019452,2]
[339253972,1727405443035,-2329.49,0.00019452,2]
[339253973,1727405443044,-500.0,0.00019452,2]
[339253974,1727405443053,-500.0,0.00019452,2]
[339253975,1727405443062,-509.06102621,0.00019452,2]
[339253976,1727405443073,-151.0,0.00019452,2]
[339253977,1727405443082,-500.0,0.00019452,2]
[339253978,1727405443091,-500.0,0.00019452,2]
[339253979,1727405443100,-502.42366268,0.00019452,2]
[339253980,1727405443110,-554.68958909,0.00019452,2]
[339253981,1727405443120,-504.21684201,0.00019452,2]
[339253982,1727405443129,-500.0,0.00019452,2]
[339253983,1727405443139,-342.5325947,0.00019452,2]
[339253984,1727405443149,-151.0,0.00019452,2]
[339253985,1727405443158,-167.40369893,0.00019452,2]
[339253986,1727405443168,-503.9632168,0.00019452,2]
[339253987,1727405443177,-500.0,0.00019452,2]
[339253988,1727405443187,-500.0,0.00019452,2]
[339253989,1727405443196,-500.0,0.00019452,2]
[339253990,1727405443205,-500.0,0.00019452,2]
[339253991,1727405443215,-519.56465659,0.00019452,2]
[339253992,1727405443225,-218.883737,0.00019452,2]
[339253993,1727405443235,-500.0,0.00019452,2]
[339253994,1727405443247,-151.0,0.00019452,2]
[339253995,1727405443258,-218.883737,0.00019452,2]
[339253996,1727405443267,-2453.84,0.00019452,2]
[339253997,1727405443276,-500.0,0.00019452,2]
[339253999,1727405443286,-503.51736652,0.00019452,2]
[339254001,1727405443295,-151.0,0.00019452,2]
[339254002,1727405443304,-500.0,0.00019452,2]
[339254003,1727405443316,-313.98973406,0.00019452,2]
[339254004,1727405443328,-505.32202519,0.00019452,2]
[339254005,1727405443339,-500.0,0.00019452,2]
[339254006,1727405443349,-500.0,0.00019452,2]
[339254007,1727405443358,-151.0,0.00019452,2]
[339254008,1727405443368,-151.0,0.00019452,2]
[339254009,1727405443377,-151.0,0.00019452,2]
[339254010,1727405443386,-151.0,0.00019452,2]
[339254011,1727405443396,-559.42,0.00019452,2]
[339254012,1727405443405,-408.20000064,0.00019452,2]
[339254013,1727405443414,-18520.12,0.00019452,2]
[339254014,1727405443423,-263.37469876,0.00019452,2]
[339254015,1727405443433,-3832.96,0.00019452,2]
[339254016,1727405443443,-500.0,0.00019452,2]
[339254017,1727405443452,-151.0,0.00019452,2]
[339254019,1727405443461,-151.0,0.00019452,2]
[339254021,1727405443471,-1974.79148896,0.00019626,2]
[339254023,1727405443480,-466.27627897,0.000197,2]
[339254024,1727405443490,-150.204243,0.000197,2]
[339254026,1727405443499,-34778.9034049,0.00019711,3]
[339254028,1727405443508,-26034.7870634,0.00019711,3]
[339254029,1727405443519,-151.0,0.00019716,2]
[339254030,1727405443530,-151.0,0.00019716,2]
[339254031,1727405443541,-151.0,0.00019716,2]
[339254032,1727405443551,-151.0,0.00019716,2]
[339254033,1727405443560,-151.0,0.00019716,2]
[339254034,1727405443569,-151.0,0.00019716,2]
[339254035,1727405443579,-26034.7870634,0.00019716,3]
[339254036,1727405443588,-151.0,0.00019721,2]
[339254037,1727405443597,-151.0,0.00019721,2]
[339254038,1727405443607,-614.41819999,0.00019726,2]
[339254039,1727405443616,-500.0,0.00019726,2]
[339254041,1727405443626,-150.16428715,0.00019726,2]
[339254042,1727405443635,-816.93,0.00019726,2]
[339254044,1727405443644,-500.0,0.00019726,2]
[339254046,1727405443653,-500.0,0.00019726,2]
[339254047,1727405443662,-672.23,0.00019726,2]
[339254048,1727405443671,-500.0,0.00019726,2]
[339254049,1727405443681,-1224.7,0.00019726,2]
[339254050,1727405443690,-1248.79201304,0.00019726,2]
[339254051,1727405443802,-179.36798696,0.00019726,2]
[339254052,1727405443813,-1669.65,0.00019726,2]
[339254053,1727405443823,-658.63,0.00019726,2]
[339254054,1727405443833,-517.01180581,0.00019726,2]
[339254055,1727405443844,-1246.33,0.00019726,2]
[339254056,1727405443854,-151.0,0.00019726,2]
[339254057,1727405443863,-151.0,0.00019726,2]
[339254058,1727405443872,-256.703241,0.00019726,2]
[339254059,1727405443882,-256.703241,0.00019726,2]
[339254060,1727405443891,-487.62435854,0.00019726,2]
[339254061,1727405443901,-151.0,0.00019726,2]
[339254062,1727405443910,-500.0,0.00019726,2]
[339254063,1727405443920,-151.0,0.00019726,2]
[339254064,1727405443929,-151.0,0.00019726,2]
[339254065,1727405443938,-500.0,0.00019726,2]
[339254066,1727405443947,-221.8604,0.00019726,2]
[339254067,1727405443957,-1000.0,0.00019726,2]
[339254068,1727405443966,-221.8604,0.00019726,2]
[339254069,1727405443975,-151.0,0.00019726,2]
[339254070,1727405443985,-207.776693,0.00019726,2]
[339254071,1727405443994,-228.134831,0.00019726,2]
[339254072,1727405444004,-228.134831,0.00019726,2]
[339254073,1727405444013,-151.0,0.00019726,2]
[339254074,1727405444023,-151.0,0.00019726,2]
[339254075,1727405444032,-389.85236087,0.00019726,2]
[339254076,1727405444041,-233.67500522,0.00019726,2]
[339254077,1727405444050,-500.0,0.00019726,2]
[339254078,1727405444060,-596.75,0.00019726,2]
[339254079,1727405444069,-220.23,0.00019726,2]
[339254080,1727405444078,-2329.49,0.00019726,2]
[339254081,1727405444086,-151.0,0.00019726,2]
[339254082,1727405444096,-500.0,0.00019726,2]
[339254083,1727405444108,-151.0,0.00019726,2]
[339254084,1727405444120,-218.883737,0.00019726,2]
[339254085,1727405444130,-218.883737,0.00019726,2]
[339254086,1727405444142,-2453.84,0.00019726,2]
[339254087,1727405444153,-162.165156,0.00019726,2]
[339254088,1727405444163,-571.22636848,0.00019726,2]
[339254089,1727405444176,-500.0,0.00019726,2]
[339254090,1727405444187,-154.42959732,0.00019726,2]
[339254091,1727405444197,-151.0,0.00019726,2]
[339254092,1727405444207,-151.0,0.00019726,2]
[339254093,1727405444218,-151.0,0.00019726,2]
[339254094,1727405444228,-295.78376599,0.00019726,2]
[339254095,1727405444262,-263.63623401,0.00019726,2]
[339254096,1727405444272,-18520.12,0.00019726,2]
[339254097,1727405444282,-3832.96,0.00019726,2]
[339254098,1727405444291,-151.0,0.00019726,2]
[339254099,1727405444301,-151.0,0.00019726,2]
[339254100,1727405444311,-150.112233,0.000198,2]
[339254101,1727405444320,-151.0,0.0001983,2]
[339254102,1727405444329,-151.0,0.0001983,2]
[339254103,1727405444338,-151.0,0.0001983,2]
[339254104,1727405444348,-180.493449,0.0001983,2]
[339254105,1727405444358,-151.0,0.0001983,2]
[339254106,1727405444367,-151.0,0.0001983,2]
[339254107,1727405444376,-151.0,0.0001983,2]
[339254108,1727405444385,-14324.84560712,0.0001983,2]
[339254109,1727405444395,-153.0,0.00019863,2]
[339254110,1727405444405,-153.0,0.00019863,2]
[339254111,1727405444417,-153.0,0.00019863,2]
[339254112,1727405444428,-3848.0,0.000199,2]
[339254113,1727405444439,-150.112233,0.000199,2]
[339254114,1727405444449,-26034.7870634,0.0001993,3]
[339254115,1727405444458,-151.0,0.0001995,2]
[339254116,1727405444469,-151.958768,0.0001995,2]
[339254117,1727405444480,-151.0,0.0001995,2]
[339254118,1727405444490,-246.802422,0.0001995,2]
[339254119,1727405444500,-151.0,0.0001995,2]
[339254120,1727405444511,-26034.7870634,0.0001995,3]
[339254121,1727405444522,-151.0,0.0001995,2]
[339254122,1727405444533,-151.0,0.0001995,2]
[339254123,1727405444542,-1000.0,0.0001995,2]
[339254124,1727405444552,-1000.0,0.0001995,2]
[339254125,1727405444561,-1000.0,0.0001995,2]
[339254126,1727405444570,-1000.0,0.0001995,2]
[339254127,1727405444579,-1000.0,0.0001995,2]
[339254128,1727405444589,-1000.0,0.0001995,2]
[339254129,1727405444600,-1000.0,0.0001995,2]
[339254130,1727405444610,-1000.0,0.0001995,2]
[339254131,1727405444621,-1000.0,0.0001995,2]
[339254132,1727405444631,-1000.0,0.0001995,2]
[339254133,1727405444641,-1000.0,0.0001995,2]
[339254134,1727405444651,-1000.0,0.0001995,2]
[339254135,1727405444660,-1000.0,0.0001995,2]
[339254136,1727405444669,-1000.0,0.0001995,2]
[339254137,1727405444678,-1000.0,0.0001995,2]
[339254138,1727405444687,-1000.0,0.0001995,2]
[339254139,1727405444696,-1000.0,0.0001995,2]
[339254140,1727405444706,-1000.0,0.0001995,2]
[339254141,1727405444716,-1000.0,0.0001995,2]
[339254142,1727405444726,-886.8164385,0.0001995,2]
[339254143,1727405444736,-151.0,0.0001995,2]
[339254144,1727405444745,-151.0,0.0001995,2]
[339254145,1727405444755,-70547.41281283,0.0001996,2]
[339254146,1727405444765,-152.837227,0.0001996,2]
[339254147,1727405444774,-152.405389,0.0001996,2]
[339254148,1727405444783,-151.0,0.0001996,2]
[339254149,1727405444793,-151.0,0.0001996,2]
[339254150,1727405444802,-151.0,0.0001996,2]
[339254151,1727405444811,-151.0,0.0001996,2]
[339254152,1727405444821,-151.0,0.0001996,2]
[339254153,1727405444830,-256.703241,0.0001996,2]
[339254154,1727405444839,-256.703241,0.0001996,2]
[339254155,1727405444848,-151.0,0.0001996,2]
[339254156,1727405444857,-151.0,0.0001996,2]
[339254157,1727405444867,-151.0,0.0001996,2]
[339254158,1727405444877,-221.8604,0.0001996,2]
[339254159,1727405444886,-221.8604,0.0001996,2]
[339254160,1727405444895,-151.0,0.0001996,2]
[339254161,1727405444905,-228.134831,0.0001996,2]
[339254162,1727405444914,-228.134831,0.0001996,2]
[339254163,1727405444924,-151.0,0.0001996,2]
[339254164,1727405444934,-151.0,0.0001996,2]
[339254165,1727405444943,-200.248334,0.0001996,2]
[339254166,1727405444953,-218.883737,0.0001996,2]
[339254167,1727405444962,-218.883737,0.0001996,2]
[339254168,1727405444971,-151.0,0.0001996,2]
[339254169,1727405444981,-500.0,0.00019973,2]
[339254170,1727405444990,-500.0,0.00019973,2]
[339254171,1727405445001,-500.0,0.00019973,2]
[339254172,1727405445113,-500.0,0.00019973,2]
[339254173,1727405445122,-204.71326294,0.00019999,2]
[339254174,1727405445132,-4768.31235522,0.00019999,2]
[339254175,1727405445141,-245.44,0.0002,2]
[339254176,1727405445150,-11857.07355434,0.0002,15]
[339254177,1727405445159,-150.112234,0.0002,3]
[339254178,1727405445170,-180.45878391,0.0002,2]
[339254179,1727405445179,-816.93,0.0002,2]
[339254180,1727405445188,-500.0,0.0002,2]
[339254181,1727405445197,-500.0,0.0002,2]
[339254182,1727405445206,-151.19763648,0.0002,2]
[339254183,1727405445215,-672.23,0.0002,2]
[339254184,1727405445224,-500.0,0.0002,2]
[339254185,1727405445234,-1224.7,0.0002,2]
[339254186,1727405445249,-1428.16,0.0002,2]
[339254187,1727405445258,-1669.65,0.0002,2]
[339254188,1727405445267,-658.63,0.0002,2]
[339254189,1727405445277,-1246.33,0.0002,2]
[339254190,1727405445288,-377.7251503,0.0002,2]
[339254191,1727405445298,-1000.0,0.0002,2]
[339254192,1727405445308,-500.0,0.0002,2]
[339254193,1727405445319,-596.75,0.0002,2]
[339254194,1727405445331,-220.23,0.0002,2]
[339254195,1727405445340,-2329.49,0.0002,2]
[339254196,1727405445350,-500.0,0.0002,2]
[339254197,1727405445360,-209.1919512,0.0002,2]
[339254198,1727405445369,-2453.84,0.0002,2]
[339254199,1727405445379,-209.1919512,0.0002,2]
[339254200,1727405445390,-500.0,0.0002,2]
[339254201,1727405445400,-194.015109,0.0002,2]
[339254202,1727405445411,-208.409073,0.0002,2]
[339254203,1727405445422,-210.011963,0.0002,2]
[339254204,1727405445433,-559.42,0.0002,2]
[339254205,1727405445442,-14780.50244007,0.0002,2]
[339254206,1727405445623,-509.14877433,0.00019178,2]
[339254207,1727405445634,-500.0,0.00019178,2]
[339254208,1727405445645,-1990.85122567,0.00019342,2]
[339254209,1727405445661,-279.42165689,0.00019342,2]
[339254249,1727406346152,-166.666666,0.00015821,2]
[339254250,1727406346176,-1682.40767541,0.00016,2]
[339254251,1727406347098,-424.8044178,0.00016,2]
[339254253,1727406426106,-892.78790679,0.00016,2]
[339254254,1727406426129,-417.79284,0.00016209,2]
[339254255,1727406426152,-646.942234,0.00016414,2]
[339254256,1727406426175,-1291.42303944,0.00016512,2]
[339254257,1727406426204,-139.18347876,0.00016512,2]
[339254258,1727406426382,-166.666666,0.000169,2]
[339254259,1727406426405,-646.942234,0.00017099,2]
[339254260,1727406426427,-500.0,0.00017246,2]
[339254261,1727406426448,-300.0,0.00017464,2]
[339254262,1727406426470,-300.0,0.00017464,2]
[339254263,1727406426494,-500.0,0.00017465,2]
[339254264,1727406426518,-500.0,0.00017465,2]
[339254265,1727406426542,-500.0,0.00017465,2]
[339254266,1727406426566,-500.0,0.00017465,2]
[339254267,1727406426591,-159.27920263,0.00017465,2]
[339254268,1727406441153,-322.25692644,0.00017465,2]
[339254269,1727406445264,-18.46387093,0.00017465,2]
[339254270,1727406445289,-500.0,0.00017465,2]
[339254271,1727406445313,-500.0,0.00017465,2]
[339254272,1727406445337,-500.0,0.00017465,2]
[339254273,1727406445361,-500.0,0.00017465,2]
[339254274,1727406445384,-500.0,0.00017465,2]
[339254275,1727406445407,-500.0,0.00017465,2]
[339254276,1727406445430,-285.95750985,0.00017465,2]
[339254277,1727406445452,-2454.54590972,0.00017466,2]
[339254278,1727406446108,-3399.91981298,0.00017466,2]
[339254287,1727406570703,1693.11607724,0.00017366,2]
[339254288,1727406572095,-1777.8920762,0.00017366,2]
[339254289,1727406579379,339.68781042,0.00021,60]
[339254297,1727406627296,215.647411,0.00016802,2]
[339254566,1727406639836,-507.81519423,0.00017366,2]
[339254567,1727406640121,-1836.34392367,0.00017366,2]
[339254568,1727406640167,-1376.84603105,0.00017366,2]
[339254569,1727406640176,-300.0,0.00017465,2]
[339254570,1727406640186,-300.0,0.00017465,2]
[339254571,1727406640196,-19045.5342773,0.00017466,2]
[339254572,1727406640205,-500.0,0.00017471,2]
[339254573,1727406640215,-500.0,0.00017471,2]
[339254574,1727406640224,-500.0,0.00017471,2]
[339254575,1727406640234,-500.0,0.00017471,2]
[339254576,1727406640244,-600.12331942,0.00017471,2]
[339254577,1727406640253,-500.0,0.00017471,2]
[339254578,1727406640263,-500.0,0.00017471,2]
[339254579,1727406640273,-500.0,0.00017471,2]
[339254580,1727406640283,-500.0,0.00017471,2]
[339254581,1727406640295,-500.0,0.00017471,2]
[339254582,1727406640308,-500.0,0.00017471,2]
[339254583,1727406640318,-500.0,0.00017471,2]
[339254584,1727406640329,-500.0,0.00017471,2]
[339254585,1727406640340,-500.0,0.00017471,2]
[339254586,1727406640350,-500.0,0.00017471,2]
[339254587,1727406640360,-500.0,0.00017471,2]
[339254588,1727406640369,-500.0,0.00017471,2]
[339254589,1727406640378,-500.0,0.00017471,2]
[339254590,1727406640387,-500.0,0.00017471,2]
[339254591,1727406640397,-500.0,0.00017471,2]
[339254592,1727406640406,-500.0,0.00017471,2]
[339254593,1727406640415,-159.388315,0.00017472,2]
[339254594,1727406640425,-215.647411,0.00017487,2]
[339254595,1727406640434,-159.388315,0.00017523,2]
[339254596,1727406640443,-159.388315,0.00017573,2]
[339254597,1727406640452,-159.388315,0.00017624,2]
[339254598,1727406640462,-542.13390647,0.0001764,2]
[339254599,1727406640471,-159.388315,0.00017674,2]
[339254600,1727406640480,-159.388315,0.00017725,2]
[339254601,1727406640490,-159.388315,0.00017776,2]
[339254602,1727406640499,-159.388315,0.00017826,2]
[339254603,1727406640509,-159.388315,0.00017877,2]
[339254604,1727406640519,-159.388315,0.00017927,2]
[339254605,1727406640531,-159.388315,0.00017978,2]
[339254606,1727406640544,-166.666666,0.00017978,2]
[339254607,1727406640554,-717.84422171,0.00018,2]
[339254608,1727406640563,-159.388315,0.00018028,2]
[339254609,1727406640572,-159.388315,0.00018079,2]
[339254610,1727406640581,-159.388315,0.0001813,2]
[339254611,1727406640591,-500.0,0.00018154,2]
[339254613,1727406640602,-215.647411,0.00018172,2]
[339254615,1727406640612,-159.388315,0.0001818,2]
[339254616,1727406640622,-159.388315,0.00018231,2]
[339254618,1727406640632,-159.388315,0.00018281,2]
[339254620,1727406640642,-159.388315,0.00018332,2]
[339254621,1727406640651,-256.97456646,0.00018355,2]
[339254623,1727406640661,-159.388315,0.00018382,2]
[339254624,1727406640671,-468.85669532,0.00018522,2]
[339254625,1727406640680,-167.242773,0.00018904,2]
[339254626,1727406640689,-5000.0,0.00019,2]
[339254627,1727406640699,-258.39241658,0.00019062,2]
[339254628,1727406640708,-420.0,0.00019066,2]
[339254629,1727406640717,-159.09586362,0.00019068,2]
[339254630,1727406640727,-1000.0,0.00019068,2]
[339254631,1727406640736,-6566.7524842,0.00019075,2]
[339254632,1727406640745,-3370.34656154,0.00019078,2]
[339254633,1727406640755,-788.81,0.00019148,3]
[339254634,1727406640764,-209.13760637,0.0001915,2]
[339254635,1727406640776,-500.0,0.00019157,2]
[339254636,1727406640788,-213.22649997,0.00019157,2]
[339254637,1727406640798,-301.77349248,0.00019157,2]
[339254638,1727406640808,-342.12877027,0.00019157,2]
[339254639,1727406640818,-500.0,0.00019157,2]
[339254640,1727406640832,-500.0,0.00019157,2]
[339254641,1727406640841,-500.0,0.00019157,2]
[339254642,1727406640850,-318.51738572,0.00019157,2]
[339254643,1727406640861,-500.0,0.00019157,2]
[339254644,1727406640871,-500.0,0.00019157,2]
[339254645,1727406640880,-258.62675207,0.00019157,2]
[339254646,1727406640889,-185.61121294,0.00019157,2]
[339254647,1727406640900,-1000.0,0.00019158,2]
[339254648,1727406640909,-771.05513665,0.00019158,2]
[339254649,1727406640918,-34225.44795447,0.00019158,3]
[339254650,1727406640930,-51863.93500913,0.00019158,3]
[339254651,1727406640939,-76652.428246,0.00019158,3]
[339254652,1727406640949,-129134.074445,0.00019168,3]
[339254653,1727406640958,-114978.642369,0.00019168,3]
[339254654,1727406640968,-548.83407114,0.00019173,2]
[339254655,1727406640977,-500.0,0.00019173,2]
[339254656,1727406640986,-500.0,0.00019173,2]
[339254657,1727406640995,-503.00385698,0.00019173,2]
[339254658,1727406641004,-500.0,0.00019173,2]
[339254659,1727406641014,-500.9470912,0.00019173,2]
[339254660,1727406641023,-332.35395732,0.00019173,2]
[339254661,1727406641032,-500.0,0.00019173,2]
[339254662,1727406641041,-417.73470645,0.00019173,2]
[339254663,1727406641050,-329.39147508,0.00019173,2]
[339254664,1727406641059,-506.8130447,0.00019178,2]
[339254665,1727406641068,-450.80446651,0.00019178,2]
[339254666,1727406641077,-500.0,0.00019178,2]
[339254667,1727406641087,-500.0,0.00019178,2]
[339254668,1727406641096,-500.0,0.00019178,2]
[339254669,1727406641106,-500.0,0.00019178,2]
[339254670,1727406641115,-510.96468312,0.00019178,2]
[339254671,1727406641124,-500.0,0.00019178,2]
[339254672,1727406641134,-505.58776362,0.00019178,2]
[339254673,1727406641143,-500.0,0.00019178,2]
[339254674,1727406641152,-500.0,0.00019178,2]
[339254675,1727406641162,-640.84628451,0.00019178,2]
[339254676,1727406641171,-500.0,0.00019178,2]
[339254677,1727406641181,-508.17203683,0.00019178,2]
[339254678,1727406641191,-510.55708519,0.00019178,2]
[339254679,1727406641200,-511.77962822,0.00019178,2]
[339254680,1727406641209,-506.82071934,0.00019178,2]
[339254681,1727406641219,-500.0,0.00019178,2]
[339254682,1727406641228,-507.68139395,0.00019178,2]
[339254683,1727406641237,-500.0,0.00019178,2]
[339254684,1727406641246,-694.06,0.00019178,2]
[339254685,1727406641256,-505.75552311,0.00019178,2]
[339254686,1727406641266,-506.07011982,0.00019178,2]
[339254687,1727406641275,-500.0,0.00019178,2]
[339254688,1727406641285,-502.37530805,0.00019178,2]
[339254689,1727406641295,-500.0,0.00019178,2]
[339254690,1727406641305,-504.25399332,0.00019178,2]
[339254691,1727406641315,-507.07870571,0.00019178,2]
[339254692,1727406641326,-500.0,0.00019178,2]
[339254693,1727406641338,-506.78731645,0.00019178,2]
[339254694,1727406641349,-500.0,0.00019178,2]
[339254695,1727406641360,-1264.58,0.00019178,2]
[339254696,1727406641369,-500.0,0.00019178,2]
[339254697,1727406641379,-1467.93,0.00019178,2]
[339254698,1727406641388,-500.0,0.00019178,2]
[339254699,1727406641398,-652.08,0.00019178,2]
[339254700,1727406641407,-407.57807079,0.00019178,2]
[339254701,1727406641418,-500.0,0.00019178,2]
[339254702,1727406641428,-500.0,0.00019178,2]
[339254703,1727406641439,-1182.03,0.00019178,2]
[339254704,1727406641451,-500.0,0.00019178,2]
[339254705,1727406641461,-509.58871563,0.00019178,2]
[339254706,1727406641567,-500.0,0.00019178,2]
[339254707,1727406641579,-504.58704169,0.00019178,2]
[339254708,1727406641588,-500.0,0.00019178,2]
[339254709,1727406641597,-500.0,0.00019178,2]
[339254710,1727406641606,-500.0,0.00019178,2]
[339254711,1727406641615,-500.0,0.00019178,2]
[339254712,1727406641624,-503.06558109,0.00019178,2]
[339254713,1727406641634,-500.0,0.00019178,2]
[339254714,1727406641643,-514.45971434,0.00019178,2]
[339254715,1727406641652,-504.21961253,0.00019178,2]
[339254716,1727406641662,-510.17944481,0.00019178,2]
[339254717,1727406641671,-502.64573123,0.00019178,2]
[339254718,1727406641680,-340.16622572,0.00019178,2]
[339254719,1727406641689,-519.752787,0.00019178,2]
[339254720,1727406641698,-500.0,0.00019178,2]
[339254721,1727406641707,-513.74410623,0.00019178,2]
[339254722,1727406641716,-201.14641141,0.00019178,2]
[339254723,1727406641725,-859.53,0.00019178,2]
[339254724,1727406641735,-500.0,0.00019178,2]
[339254725,1727406641746,-500.0,0.00019178,2]
[339254726,1727406641755,-500.0,0.00019178,2]
[339254727,1727406641764,-500.0,0.00019178,2]
[339254728,1727406641774,-514.90413926,0.00019178,2]
[339254729,1727406641783,-508.29261537,0.00019178,2]
[339254730,1727406641792,-500.0,0.00019178,2]
[339254731,1727406641801,-500.0,0.00019178,2]
[339254732,1727406641811,-500.0,0.00019178,2]
[339254733,1727406641821,-500.0,0.00019178,2]
[339254734,1727406641835,-500.0,0.00019178,2]
[339254735,1727406641844,-500.0,0.00019178,2]
[339254736,1727406641853,-315.69908596,0.00019178,2]
[339254737,1727406641862,-500.0,0.00019178,2]
[339254738,1727406641872,-500.0,0.00019178,2]
[339254739,1727406641881,-500.0,0.00019178,2]
[339254740,1727406641891,-500.0,0.00019178,2]
[339254741,1727406641900,-500.0,0.00019178,2]
[339254742,1727406641911,-512.31092145,0.00019178,2]
[339254743,1727406641920,-505.57790031,0.00019178,2]
[339254744,1727406641930,-500.0,0.00019178,2]
[339254745,1727406641939,-500.0,0.00019178,2]
[339254746,1727406641948,-500.0,0.00019178,2]
[339254747,1727406641958,-512.44586229,0.00019178,2]
[339254748,1727406641967,-500.0,0.00019178,2]
[339254749,1727406641977,-500.0,0.00019178,2]
[339254750,1727406641986,-182.67926184,0.00019178,2]
[339254751,1727406641995,-507.73715243,0.00019178,2]
[339254752,1727406642004,-508.62598827,0.00019178,2]
[339254753,1727406642014,-500.0,0.00019178,2]
[339254754,1727406642023,-504.77009013,0.00019178,2]
[339254755,1727406642033,-1000.0,0.00019178,2]
[339254756,1727406642042,-500.0,0.00019178,2]
[339254757,1727406642051,-500.0,0.00019178,2]
[339254758,1727406642061,-500.0,0.00019178,2]
[339254759,1727406642070,-504.36913356,0.00019178,2]
[339254760,1727406642079,-513.28879907,0.00019178,2]
[339254761,1727406642088,-500.0,0.00019178,2]
[339254762,1727406642097,-500.0,0.00019178,2]
[339254763,1727406642106,-500.0,0.00019178,2]
[339254764,1727406642115,-508.10293949,0.00019178,2]
[339254765,1727406642124,-522.0485193,0.00019178,2]
[339254766,1727406642133,-507.75875498,0.00019178,2]
[339254767,1727406642142,-507.21746871,0.00019178,2]
[339254768,1727406642151,-500.0,0.00019178,2]